fUST/lending_fUST_20250816
["ID","MTS","AMOUNT","RATE_DAILY","PERIOD"]
[379575233,1755337844011,-1053.43,0.00021361,2]
[379575235,1755337844020,-288.0,0.00021379,20]
[379575237,1755337844030,-160.0,0.00021386,2]
[379575239,1755337844039,-160.0,0.00021386,2]
[379575241,1755337844048,-160.0,0.00021386,2]
[379575243,1755337844057,-528.38334358,0.00021386,2]
[379575245,1755337844066,-462.1417622,0.00021386,2]
[379575247,1755337844076,-200.99626775,0.00021537,2]
[379575249,1755337844086,-157.0,0.000216,4]
[379575251,1755337844096,-151.0,0.00021604,2]
[379575253,1755337844105,-151.0,0.00021604,2]
[379575255,1755337844115,-151.0,0.00021604,2]
[379575257,1755337844125,-151.0,0.00021604,2]
[379575259,1755337844134,-151.0,0.00021604,2]
[379575261,1755337844144,-151.0,0.00021604,2]
[379575263,1755337844153,-151.0,0.00021604,2]
[379575265,1755337844162,-151.0,0.00021604,2]
[379575267,1755337844171,-151.0,0.00021604,2]
[379575269,1755337844181,-151.0,0.00021604,2]
[379575271,1755337844191,-11328.39850822,0.00021604,2]
[379575273,1755337844199,-1013.2,0.00021607,10]
[379575275,1755337844209,-844.33,0.00021607,10]
[379575277,1755337844219,-703.61,0.00021607,10]
[379575279,1755337844228,-106640.96371963,0.00021617,2]
[379575281,1755337844237,-157.0,0.000218,4]
[379575283,1755337844246,-345.0,0.00021807,20]
[379575285,1755337844255,-395.73076041,0.00021817,2]
[379575287,1755337844266,-420.0,0.0002187,2]
[379575289,1755337844276,-157.0,0.000219,5]
[379575291,1755337844285,-377.64197813,0.00021917,3]
[379575293,1755337844294,-440.0,0.00021917,3]
[379575295,1755337844304,-480.0,0.00021917,3]
[379575297,1755337844314,-323.18964026,0.00021917,3]
[379575299,1755337844323,-480.0,0.00021917,3]
[379575301,1755337844332,-404.10101837,0.00021917,3]
[379575304,1755337844342,-420.0,0.00021917,3]
[379575306,1755337844352,-440.0,0.00021917,3]
[379575308,1755337844366,-440.0,0.00021917,3]
[379575310,1755337844377,-480.0,0.00021917,3]
[379575312,1755337844387,-480.0,0.00021917,3]
[379575314,1755337844397,-480.0,0.00021917,3]
[379575316,1755337844407,-480.0,0.00021917,3]
[379575318,1755337844417,-519.01047851,0.00021917,3]
[379575319,1755337844427,-480.0,0.00021917,3]
[379575322,1755337844438,-480.0,0.00021917,3]
[379575324,1755337844452,-480.0,0.00021917,3]
[379575326,1755337844462,-440.0,0.00021917,3]
[379575328,1755337844472,-671.7,0.00021917,3]
[379575330,1755337844481,-480.0,0.00021917,3]
[379575332,1755337844491,-480.0,0.00021917,3]
[379575334,1755337844500,-480.0,0.00021917,3]
[379575335,1755337844512,-480.0,0.00021917,3]
[379575338,1755337844523,-420.0,0.00021917,3]
[379575340,1755337844532,-440.0,0.00021917,3]
[379575342,1755337844542,-480.0,0.00021917,3]
[379575344,1755337844551,-480.0,0.00021917,3]
[379575346,1755337844561,-2715.0,0.00021917,3]
[379575348,1755337844571,-480.0,0.00021917,3]
[379575350,1755337844580,-460.0,0.00021917,3]
[379575352,1755337844589,-480.0,0.00021917,3]
[379575354,1755337844598,-480.0,0.00021917,3]
[379575356,1755337844608,-480.0,0.00021917,3]
[379575358,1755337844617,-440.0,0.00021917,3]
[379575360,1755337844626,-480.0,0.00021917,3]
[379575362,1755337844636,-480.0,0.00021917,3]
[379575364,1755337844645,-1057.5,0.00021917,3]
[379575366,1755337844654,-480.0,0.00021917,3]
[379575367,1755337844663,-480.0,0.00021917,3]
[379575369,1755337844672,-480.0,0.00021917,3]
[379575371,1755337844682,-480.0,0.00021917,3]
[379575373,1755337844691,-480.0,0.00021917,3]
[379575375,1755337844701,-480.0,0.00021917,3]
[379575377,1755337844710,-480.0,0.00021917,3]
[379575379,1755337844720,-480.0,0.00021917,3]
[379575381,1755337844729,-267.46142335,0.00021917,3]
[379575383,1755337844739,-480.0,0.00021917,3]
[379575385,1755337844748,-480.0,0.00021917,3]
[379575388,1755337844758,-440.0,0.00021917,3]
[379575389,1755337844767,-480.0,0.00021917,3]
[379575392,1755337844777,-441.16726403,0.00021917,3]
[379575394,1755337844787,-440.0,0.00021917,3]
[379575396,1755337844797,-480.0,0.00021917,3]
[379575398,1755337844806,-480.0,0.00021917,3]
[379575400,1755337844819,-480.0,0.00021917,3]
[379575402,1755337844835,-480.0,0.00021917,3]
[379575404,1755337844845,-480.0,0.00021917,3]
[379575406,1755337844855,-480.0,0.00021917,3]
[379575408,1755337844866,-480.0,0.00021917,3]
[379575410,1755337844876,-480.0,0.00021917,3]
[379575412,1755337844886,-480.0,0.00021917,3]
[379575414,1755337844896,-480.0,0.00021917,3]
[379575416,1755337844907,-553.89,0.00021917,3]
[379575418,1755337844917,-480.0,0.00021917,3]
[379575420,1755337844927,-440.0,0.00021917,3]
[379575422,1755337844936,-652.48,0.00021917,3]
[379575424,1755337844945,-480.0,0.00021917,3]
[379575426,1755337844954,-480.0,0.00021917,3]
[379575428,1755337844964,-480.0,0.00021917,3]
[379575430,1755337844973,-480.0,0.00021917,3]
[379575432,1755337844982,-480.0,0.00021917,3]
[379575434,1755337844991,-582.42,0.00021917,3]
[379575436,1755337845000,-380.0,0.00021917,3]
[379575438,1755337845011,-480.0,0.00021917,3]
[379575440,1755337845020,-420.0,0.00021917,3]
[379575442,1755337845029,-440.83309746,0.00021917,3]
[379575444,1755337845039,-480.0,0.00021917,3]
[379575446,1755337845048,-420.0,0.00021917,3]
[379575448,1755337845057,-480.0,0.00021917,3]
[379575449,1755337845067,-480.0,0.00021917,3]
[379575452,1755337845076,-480.0,0.00021917,3]
[379575454,1755337845085,-480.0,0.00021917,3]
[379575456,1755337845101,-480.0,0.00021917,3]
[379575459,1755337845114,-480.0,0.00021917,3]
[379575461,1755337845124,-480.0,0.00021917,3]
[379575463,1755337845134,-480.0,0.00021917,3]
[379575465,1755337845143,-480.0,0.00021917,3]
[379575467,1755337845153,-440.0,0.00021917,3]
[379575469,1755337845162,-440.0,0.00021917,3]
[379575471,1755337845172,-480.0,0.00021917,3]
[379575473,1755337845181,-480.0,0.00021917,3]
[379575475,1755337845191,-270.85511728,0.00021917,3]
[379575477,1755337845201,-480.0,0.00021917,3]
[379575479,1755337845210,-480.0,0.00021917,3]
[379575481,1755337845220,-480.0,0.00021917,3]
[379575483,1755337845229,-440.0,0.00021917,3]
[379575485,1755337845240,-480.0,0.00021917,3]
[379575487,1755337845249,-480.0,0.00021917,3]
[379575489,1755337845259,-78.26547689,0.00021917,3]
[379575509,1755337845437,-401.73452311,0.00021917,3]
[379575512,1755337845451,-480.0,0.00021917,3]
[379575514,1755337845461,-480.0,0.00021917,3]
[379575516,1755337845471,-440.0,0.00021917,3]
[379575518,1755337845480,-480.0,0.00021917,3]
[379575520,1755337845490,-292.55333489,0.00021917,3]
[379575630,1755337846793,-187.44666511,0.00021917,3]
[379575633,1755337846803,-480.0,0.00021917,3]
[379575635,1755337846813,-580.88,0.00021917,3]
[379575637,1755337846823,-480.0,0.00021917,3]
[379575639,1755337846832,-179.77100771,0.00021917,3]
[379575642,1755337846852,-300.22899229,0.00021917,3]
[379575644,1755337846862,-440.0,0.00021917,3]
[379575646,1755337846871,-480.0,0.00021917,3]
[379575648,1755337846880,-1493.87795182,0.00021917,3]
[379575759,1755337890519,1000.0,0.00022,30]
[379575763,1755337925904,189.968849,0.00013699,2]
[379575764,1755337929158,200.99626775,0.000199,2]
[379575810,1755338048101,578.13243782,0.000199,2]
[379575821,1755338058848,151.32,0.00028767,120]
[379575849,1755338110687,208.87469688,0.000199,2]
[379575851,1755338184198,948.70174581,0.00019885,2]
[379575861,1755338264800,151.0,0.00028767,120]
[379575865,1755338277156,500.0,0.000199,2]
[379575866,1755338281114,208.87469686,0.000199,2]
[379575869,1755338306249,150.0,0.00028767,120]
[379575870,1755338308003,500.0,0.000199,2]
[379575875,1755338356244,-300.0,0.00019983,2]
[379575876,1755338356266,-49923.92197182,0.00019984,2]
[379575877,1755338356289,-500.0,0.00019984,2]
[379575878,1755338356312,-526.41386465,0.00019984,2]
[379575879,1755338356333,-500.0,0.00019984,2]
[379575880,1755338356355,-500.0,0.00019984,2]
[379575881,1755338356379,-500.0,0.00019984,2]
[379575882,1755338356402,-500.0,0.00019984,2]
[379575883,1755338356425,-642.01796056,0.00019984,2]
[379575884,1755338356450,-500.0,0.00019984,2]
[379575885,1755338356472,-482.98274003,0.00019984,2]
[379575886,1755338356496,-500.0,0.00019984,2]
[379575887,1755338356519,-500.0,0.00019984,2]
[379575888,1755338356541,-500.0,0.00019984,2]
[379575889,1755338356569,-307.58736505,0.00019985,2]
[379575890,1755338356595,-90508.07609789,0.00019986,2]
[379575892,1755338364572,300.0,0.00019883,2]
[379575893,1755338364839,428.08,0.00018777,2]
[379575894,1755338365129,428.08,0.00018177,26]
[379575905,1755338452182,171.0,0.00028767,120]
[379575908,1755338461997,207.54082785,0.000199,2]
[379575924,1755338580180,150.0,0.00028767,120]
[379575937,1755338661065,207.54082777,0.000199,2]
[379575938,1755338669136,150.0,0.00028767,120]
[379575945,1755338711013,300.0,0.00028767,120]
[379575955,1755338755126,-325.03386162,0.00019986,2]
[379575969,1755338843092,-637.64813865,0.00019986,2]
[379575970,1755338843115,-251.70148214,0.00019986,2]
[379575971,1755338843137,-32.1142813,0.0002,2]
[379575972,1755338847531,205.19669329,0.000199,2]
[379575974,1755338851097,-117.8857187,0.0002,2]
[379575975,1755338851122,-156.05689075,0.0002,2]
[379575976,1755338851146,-300.0,0.00020057,2]
[379575977,1755338851172,-19.42070807,0.00020057,2]
[379575999,1755339020789,205.1966932,0.000199,2]
[379576001,1755339031987,-4997.38990144,0.00019957,2]
[379576002,1755339032042,-602.98752802,0.00019957,2]
[379576003,1755339032053,-578.13243782,0.00019957,2]
[379576004,1755339032095,-265.31770726,0.00019957,2]
[379576005,1755339032107,-699.856,0.00019957,2]
[379576006,1755339032119,-528.36992804,0.00019957,2]
[379576186,1755339038003,-4299.82623,0.00019957,2]
[379576187,1755339038016,-832.9999536,0.00019957,2]
[379576188,1755339038027,-1074.0,0.00019957,2]
[379576189,1755339038040,-8426.166588,0.00019957,2]
[379576190,1755339038109,-5256.43909162,0.00019957,2]
[379576191,1755339038119,-1262.87727076,0.00019957,2]
[379576192,1755339038129,-57946.58640259,0.0002,2]
[379576193,1755339038139,-385.24795421,0.00020057,2]
[379576194,1755339038149,-79134.5804432,0.00020058,2]
[379576195,1755339038158,-189.968849,0.00020187,2]
[379576196,1755339038168,-181.993287,0.00020231,2]
[379576197,1755339038178,-300.0,0.00020283,2]
[379576198,1755339038187,-182.6308446,0.00020306,2]
[379576199,1755339038197,-506.6,0.00020404,2]
[379576200,1755339038207,-258.61100703,0.00020683,2]
[379576201,1755339038217,-205.1966932,0.00021128,2]
[379576202,1755339038226,-1013.21,0.00021375,2]
[379576203,1755339038237,-580.575816,0.00021479,2]
[379576204,1755339038247,-250.0,0.00021504,2]
[379576205,1755339038256,-250.0,0.00021504,2]
[379576206,1755339038266,-250.0,0.00021504,2]
[379576207,1755339038276,-250.0,0.00021504,2]
[379576208,1755339038286,-215.31115554,0.00021516,2]
[379576209,1755339038295,-215.68093138,0.00021516,2]
[379576210,1755339038305,-528.38334358,0.00021516,2]
[379576211,1755339038315,-462.1417622,0.00021516,2]
[379576212,1755339038326,-271.80648357,0.00021517,2]
[379576213,1755339038335,-185334.70692457,0.00021517,2]
[379576214,1755339038345,-590.16864092,0.00021681,2]
[379576215,1755339038354,-1161.151632,0.00021781,2]
[379576216,1755339038364,-590.1686409,0.00021852,2]
[379576217,1755339038374,-1615.26330676,0.00021917,2]
[379576218,1755339038383,-480.0,0.00021917,3]
[379576219,1755339038393,-440.0,0.00021917,3]
[379576220,1755339038402,-482.52578215,0.00021917,3]
[379576221,1755339038412,-440.0,0.00021917,3]
[379576222,1755339038422,-480.0,0.00021917,3]
[379576223,1755339038432,-440.0,0.00021917,3]
[379576224,1755339038442,-440.0,0.00021917,3]
[379576225,1755339038452,-480.0,0.00021917,3]
[379576226,1755339038462,-480.0,0.00021917,3]
[379576227,1755339038471,-480.0,0.00021917,3]
[379576228,1755339038481,-480.0,0.00021917,3]
[379576229,1755339038490,-440.0,0.00021917,3]
[379576230,1755339038500,-480.0,0.00021917,3]
[379576231,1755339038510,-480.0,0.00021917,3]
[379576232,1755339038520,-480.0,0.00021917,3]
[379576233,1755339038530,-270.85273804,0.00021917,3]
[379576234,1755339038539,-480.0,0.00021917,3]
[379576235,1755339038549,-480.0,0.00021917,3]
[379576236,1755339038559,-556.2,0.00021917,3]
[379576237,1755339038569,-480.0,0.00021917,3]
[379576238,1755339038579,-500.0,0.00021917,3]
[379576239,1755339038588,-480.0,0.00021917,3]
[379576240,1755339038598,-440.77004918,0.00021917,3]
[379576241,1755339038608,-480.0,0.00021917,3]
[379576242,1755339038618,-480.0,0.00021917,3]
[379576243,1755339038628,-584.99,0.00021917,3]
[379576244,1755339038637,-480.0,0.00021917,3]
[379576245,1755339038647,-480.0,0.00021917,3]
[379576246,1755339038656,-480.0,0.00021917,3]
[379576247,1755339038666,-480.0,0.00021917,3]
[379576248,1755339038675,-480.0,0.00021917,3]
[379576249,1755339038684,-440.0,0.00021917,3]
[379576250,1755339038694,-480.0,0.00021917,3]
[379576251,1755339038703,-480.0,0.00021917,3]
[379576253,1755339038712,-480.0,0.00021917,3]
[379576255,1755339038721,-480.0,0.00021917,3]
[379576257,1755339038731,-608.59,0.00021917,3]
[379576259,1755339038740,-480.0,0.00021917,3]
[379576260,1755339038750,-480.0,0.00021917,3]
[379576262,1755339038759,-480.0,0.00021917,3]
[379576264,1755339038769,-480.0,0.00021917,3]
[379576265,1755339038778,-182.03440314,0.00021917,3]
[379576267,1755339038787,-480.0,0.00021917,3]
[379576269,1755339038796,-480.0,0.00021917,3]
[379576270,1755339038807,-480.0,0.00021917,3]
[379576271,1755339038819,-480.0,0.00021917,3]
[379576272,1755339038829,-480.0,0.00021917,3]
[379576273,1755339038838,-480.0,0.00021917,3]
[379576274,1755339038848,-616.57048043,0.00021917,3]
[379576275,1755339038857,-480.0,0.00021917,3]
[379576276,1755339038867,-480.0,0.00021917,3]
[379576277,1755339038876,-480.0,0.00021917,3]
[379576278,1755339038886,-480.0,0.00021917,3]
[379576279,1755339038895,-480.0,0.00021917,3]
[379576280,1755339038904,-480.0,0.00021917,3]
[379576281,1755339038915,-480.0,0.00021917,3]
[379576282,1755339038924,-480.0,0.00021917,3]
[379576283,1755339038934,-480.0,0.00021917,3]
[379576284,1755339038943,-480.0,0.00021917,3]
[379576285,1755339038953,-440.0,0.00021917,3]
[379576286,1755339038963,-480.0,0.00021917,3]
[379576287,1755339038972,-480.0,0.00021917,3]
[379576288,1755339038983,-480.0,0.00021917,3]
[379576289,1755339038992,-480.0,0.00021917,3]
[379576290,1755339039002,-480.0,0.00021917,3]
[379576291,1755339039012,-271.91754933,0.00021917,3]
[379576292,1755339039022,-480.0,0.00021917,3]
[379576293,1755339039032,-480.0,0.00021917,3]
[379576294,1755339039042,-480.0,0.00021917,3]
[379576295,1755339039052,-5991.78,0.00021917,3]
[379576296,1755339039061,-480.0,0.00021917,3]
[379576297,1755339039071,-480.0,0.00021917,3]
[379576298,1755339039081,-480.0,0.00021917,3]
[379576299,1755339039091,-480.0,0.00021917,3]
[379576300,1755339039102,-480.0,0.00021917,3]
[379576301,1755339039111,-480.0,0.00021917,3]
[379576302,1755339039122,-480.0,0.00021917,3]
[379576303,1755339039131,-441.66460074,0.00021917,3]
[379576304,1755339039140,-480.0,0.00021917,3]
[379576305,1755339039149,-480.0,0.00021917,3]
[379576306,1755339039159,-480.0,0.00021917,3]
[379576307,1755339039169,-480.0,0.00021917,3]
[379576308,1755339039179,-480.0,0.00021917,3]
[379576309,1755339039188,-480.0,0.00021917,3]
[379576310,1755339039198,-480.0,0.00021917,3]
[379576311,1755339039208,-480.0,0.00021917,3]
[379576312,1755339039218,-480.0,0.00021917,3]
[379576313,1755339039228,-480.0,0.00021917,3]
[379576314,1755339039237,-480.0,0.00021917,3]
[379576315,1755339039248,-480.0,0.00021917,3]
[379576316,1755339039257,-480.0,0.00021917,3]
[379576317,1755339039266,-480.0,0.00021917,3]
[379576318,1755339039276,-480.0,0.00021917,3]
[379576319,1755339039286,-480.0,0.00021917,3]
[379576320,1755339039295,-480.0,0.00021917,3]
[379576321,1755339039305,-1191.14,0.00021917,3]
[379576322,1755339039314,-151.0,0.00021917,2]
[379576323,1755339039325,-480.0,0.00021917,3]
[379576324,1755339039335,-480.0,0.00021917,3]
[379576325,1755339039344,-480.0,0.00021917,3]
[379576326,1755339039354,-480.0,0.00021917,3]
[379576327,1755339039363,-480.0,0.00021917,3]
[379576328,1755339039373,-480.0,0.00021917,3]
[379576329,1755339039382,-480.0,0.00021917,3]
[379576330,1755339039392,-440.0,0.00021917,3]
[379576331,1755339039402,-480.0,0.00021917,3]
[379576332,1755339039412,-480.0,0.00021917,3]
[379576334,1755339039422,-480.0,0.00021917,3]
[379576336,1755339039432,-480.0,0.00021917,3]
[379576338,1755339039442,-480.0,0.00021917,3]
[379576339,1755339039451,-480.0,0.00021917,3]
[379576341,1755339039460,-480.0,0.00021917,3]
[379576342,1755339039470,-480.0,0.00021917,2]
[379576343,1755339039479,-441.60176092,0.00021917,3]
[379576344,1755339039488,-480.0,0.00021917,3]
[379576345,1755339039498,-480.0,0.00021917,3]
[379576346,1755339039508,-480.0,0.00021917,3]
[379576347,1755339039517,-480.0,0.00021917,3]
[379576348,1755339039527,-203.1195472,0.00021917,3]
[379576349,1755339039536,-480.0,0.00021917,3]
[379576350,1755339039546,-480.0,0.00021917,3]
[379576351,1755339039555,-480.0,0.00021917,3]
[379576352,1755339039565,-480.0,0.00021917,3]
[379576353,1755339039575,-480.0,0.00021917,3]
[379576354,1755339039584,-480.0,0.00021917,3]
[379576355,1755339039594,-480.0,0.00021917,3]
[379576356,1755339039603,-480.0,0.00021917,3]
[379576357,1755339039613,-618.23431631,0.00021917,3]
[379576358,1755339039623,-480.0,0.00021917,3]
[379576359,1755339039632,-480.0,0.00021917,3]
[379576360,1755339039642,-460.0,0.00021917,3]
[379576361,1755339039651,-480.0,0.00021917,3]
[379576362,1755339039661,-480.0,0.00021917,3]
[379576363,1755339039671,-480.0,0.00021917,3]
[379576364,1755339039680,-480.0,0.00021917,3]
[379576365,1755339039690,-480.0,0.00021917,3]
[379576366,1755339039699,-480.0,0.00021917,3]
[379576367,1755339039709,-440.0,0.00021917,3]
[379576368,1755339039719,-480.0,0.00021917,3]
[379576369,1755339039730,-480.0,0.00021917,3]
[379576371,1755339039739,-519.76,0.00021917,3]
[379576372,1755339039748,-480.0,0.00021917,3]
[379576373,1755339039758,-480.0,0.00021917,3]
[379576374,1755339039768,-480.0,0.00021917,3]
[379576375,1755339039778,-480.0,0.00021917,3]
[379576376,1755339039787,-359.45208057,0.00021917,3]
[379576377,1755339039797,-480.0,0.00021917,3]
[379576378,1755339039809,-480.0,0.00021917,3]
[379576379,1755339039820,-440.0,0.00021917,3]
[379576381,1755339039830,-480.0,0.00021917,3]
[379576382,1755339039839,-480.0,0.00021917,3]
[379576383,1755339039850,-480.0,0.00021917,3]
[379576384,1755339039859,-480.0,0.00021917,3]
[379576385,1755339039869,-480.0,0.00021917,3]
[379576386,1755339039879,-480.0,0.00021917,3]
[379576387,1755339039888,-480.0,0.00021917,3]
[379576388,1755339039898,-480.0,0.00021917,3]
[379576389,1755339039908,-545.3,0.00021917,3]
[379576390,1755339039918,-480.0,0.00021917,3]
[379576391,1755339039927,-480.0,0.00021917,3]
[379576392,1755339039937,-480.0,0.00021917,3]
[379576393,1755339039947,-480.0,0.00021917,3]
[379576394,1755339039956,-480.0,0.00021917,3]
[379576395,1755339039967,-480.0,0.00021917,3]
[379576396,1755339040132,-480.0,0.00021917,3]
[379576397,1755339040143,-480.0,0.00021917,3]
[379576398,1755339040152,-480.0,0.00021917,3]
[379576399,1755339040162,-549.41660878,0.00021917,3]
[379576400,1755339040172,-480.0,0.00021917,3]
[379576401,1755339040182,-480.0,0.00021917,3]
[379576402,1755339040192,-717.07,0.00021917,3]
[379576403,1755339040202,-480.0,0.00021917,3]
[379576404,1755339040212,-480.0,0.00021917,3]
[379576405,1755339040221,-460.0,0.00021917,3]
[379576406,1755339040232,-480.0,0.00021917,3]
[379576407,1755339040242,-480.0,0.00021917,3]
[379576408,1755339040251,-1000.0,0.00021917,3]
[379576409,1755339040262,-964.316906,0.00021917,2]
[379576410,1755339040271,-480.0,0.00021917,3]
[379576411,1755339040280,-964.316906,0.00021917,2]
[379576412,1755339040290,-440.0,0.00021917,3]
[379576413,1755339040299,-480.0,0.00021917,3]
[379576414,1755339040310,-480.0,0.00021917,3]
[379576415,1755339040320,-440.0,0.00021917,3]
[379576416,1755339040330,-440.0,0.00021917,3]
[379576417,1755339040340,-480.0,0.00021917,3]
[379576418,1755339040350,-480.0,0.00021917,3]
[379576419,1755339040359,-480.0,0.00021917,3]
[379576420,1755339040369,-480.0,0.00021917,3]
[379576421,1755339040378,-441.36459321,0.00021917,3]
[379576422,1755339040388,-480.0,0.00021917,3]
[379576423,1755339040397,-480.0,0.00021917,3]
[379576424,1755339040407,-480.0,0.00021917,3]
[379576425,1755339040416,-480.0,0.00021917,3]
[379576426,1755339040425,-480.0,0.00021917,3]
[379576427,1755339040435,-480.0,0.00021917,3]
[379576428,1755339040444,-480.0,0.00021917,3]
[379576429,1755339040454,-480.0,0.00021917,3]
[379576430,1755339040464,-2302.3,0.00021917,3]
[379576431,1755339040473,-480.0,0.00021917,3]
[379576432,1755339040483,-480.0,0.00021917,3]
[379576433,1755339040493,-480.0,0.00021917,3]
[379576434,1755339040503,-480.0,0.00021917,3]
[379576435,1755339040513,-480.0,0.00021917,3]
[379576436,1755339040522,-480.0,0.00021917,3]
[379576437,1755339040531,-480.0,0.00021917,3]
[379576438,1755339040541,-480.0,0.00021917,3]
[379576439,1755339040551,-480.0,0.00021917,3]
[379576440,1755339040560,-480.0,0.00021917,3]
[379576441,1755339040570,-480.0,0.00021917,3]
[379576442,1755339040579,-480.0,0.00021917,3]
[379576443,1755339040589,-480.0,0.00021917,3]
[379576444,1755339040599,-480.0,0.00021917,3]
[379576445,1755339040608,-480.0,0.00021917,3]
[379576446,1755339040618,-480.0,0.00021917,3]
[379576447,1755339040627,-480.0,0.00021917,3]
[379576448,1755339040637,-480.0,0.00021917,3]
[379576449,1755339040646,-480.0,0.00021917,3]
[379576450,1755339040656,-480.0,0.00021917,3]
[379576451,1755339040665,-480.0,0.00021917,3]
[379576452,1755339040675,-480.0,0.00021917,3]
[379576453,1755339040685,-480.0,0.00021917,3]
[379576454,1755339040694,-480.0,0.00021917,3]
[379576455,1755339040704,-480.0,0.00021917,3]
[379576456,1755339040713,-480.0,0.00021917,3]
[379576457,1755339040722,-480.0,0.00021917,3]
[379576458,1755339040733,-455.563159,0.00021917,2]
[379576459,1755339040742,-480.0,0.00021917,3]
[379576460,1755339040751,-480.0,0.00021917,3]
[379576461,1755339040760,-440.0,0.00021917,3]
[379576462,1755339040770,-480.0,0.00021917,3]
[379576463,1755339040779,-480.0,0.00021917,3]
[379576464,1755339040788,-480.0,0.00021917,3]
[379576465,1755339040798,-480.0,0.00021917,3]
[379576466,1755339040809,-455.563159,0.00021917,2]
[379576467,1755339040819,-480.0,0.00021917,3]
[379576468,1755339040828,-480.0,0.00021917,3]
[379576469,1755339040838,-480.0,0.00021917,3]
[379576470,1755339040847,-480.0,0.00021917,3]
[379576471,1755339040857,-480.0,0.00021917,3]
[379576472,1755339040867,-480.0,0.00021917,3]
[379576473,1755339040877,-480.0,0.00021917,3]
[379576474,1755339040886,-480.0,0.00021917,3]
[379576475,1755339040896,-417.47828586,0.00021917,3]
[379576476,1755339040906,-480.0,0.00021917,3]
[379576477,1755339040916,-480.0,0.00021917,3]
[379576478,1755339040926,-480.0,0.00021917,3]
[379576479,1755339040935,-480.0,0.00021917,3]
[379576480,1755339040945,-480.0,0.00021917,3]
[379576481,1755339040955,-480.0,0.00021917,3]
[379576482,1755339040964,-480.0,0.00021917,3]
[379576483,1755339040974,-440.0,0.00021917,3]
[379576484,1755339040984,-452.68656075,0.00021917,3]
[379576485,1755339040994,-1024.92,0.00021917,3]
[379576486,1755339041004,-185.0643706,0.00021917,3]
[379576487,1755339041013,-480.0,0.00021917,3]
[379576488,1755339041023,-480.0,0.00021917,3]
[379576489,1755339041033,-480.0,0.00021917,3]
[379576490,1755339041043,-480.0,0.00021917,3]
[379576491,1755339041052,-480.0,0.00021917,3]
[379576492,1755339041061,-480.0,0.00021917,3]
[379576493,1755339041071,-480.0,0.00021917,3]
[379576494,1755339041081,-444.16754783,0.00021917,3]
[379576495,1755339041090,-1949.92,0.00021917,3]
[379576496,1755339041100,-480.0,0.00021917,3]
[379576497,1755339041110,-480.0,0.00021917,3]
[379576498,1755339041119,-480.0,0.00021917,3]
[379576499,1755339041129,-480.0,0.00021917,3]
[379576500,1755339041139,-480.0,0.00021917,3]
[379576501,1755339041148,-640.69,0.00021917,3]
[379576502,1755339041158,-480.0,0.00021917,3]
[379576503,1755339041168,-480.0,0.00021917,3]